bitfinex/quotes_ETHUSD_20250114
["timestamp","ask_amount","ask_price","bid_price","bid_amount"]
[1736842183269,0.005,3183.4,3183.3,9.75000126]
[1736842183471,0.005,3183.4,3183.3,6.60111126]
[1736842189286,0.005,3183.4,3183.3,5.76891126]
[1736842194932,3.90139,3183.4,3183.3,0.45401126]
[1736842195134,4.6312631,3183.4,3183.3,0.45401126]
[1736842195631,3.8761631,3183.4,3182.6,0.29352488]
[1736842195810,0.7551,3182.7,3182.6,0.29352488]
[1736842196007,3.93629675,3182.7,3182.6,0.60842488]
[1736842197002,0.7551,3182.7,3182.2,0.3149]
[1736842197323,3.89684,3183.0,3182.4,0.3149]
[1736842197633,0.7551,3183.0,3182.4,0.3149]
[1736842198018,0.7551,3183.0,3182.6,0.3149]
[1736842198421,3.14154,3183.2,3182.8,0.3149]
[1736842198734,0.7601,3183.4,3182.8,0.3149]
[1736842198901,0.7601,3183.4,3182.8,4.1471]
[1736842199101,0.7601,3183.4,3183.0,0.3149]
[1736842199840,0.79931675,3183.4,3183.0,0.3149]
[1736842200238,0.79931675,3183.4,3182.9,0.3149]
[1736842201545,0.7601,3183.4,3183.1,0.3149]
[1736842201903,0.79931675,3183.4,3183.1,0.3149]
[1736842202305,0.005,3183.4,3183.1,0.3149]
[1736842202733,0.005,3183.4,3182.9,0.3149]
[1736842203943,0.005,3183.4,3183.1,0.3149]
[1736842204349,0.005,3183.4,3183.1,2.3149]
[1736842206069,0.005,3183.4,3183.2,0.60887589]
[1736842207155,0.005,3183.4,3183.3,0.29397589]
[1736842207718,0.005,3183.4,3183.3,0.43886574]
[1736842207719,3.90179,3183.4,3183.3,0.43886574]
[1736842207930,4.63562477,3183.4,3183.3,0.43886574]
[1736842208168,4.63562477,3183.4,3183.3,0.29397589]
[1736842208345,3.89778,3182.4,3181.7,2.817]
[1736842208670,0.7555,3182.4,3181.8,0.46075447]
[1736842208840,0.7555,3182.4,3181.8,0.49217986]
[1736842209037,0.7555,3182.4,3181.8,3.49217986]
[1736842209354,0.7555,3182.4,3181.8,3.46075447]
[1736842209536,0.79471675,3182.4,3181.8,3.46075447]
[1736842210266,3.1424,3182.3,3181.8,0.46075447]
[1736842210564,0.03921675,3182.2,3181.8,0.46075447]
[1736842211135,3.18172675,3182.2,3181.8,0.46075447]
[1736842212027,3.18172675,3182.2,3181.8,0.14585447]
[1736842212028,3.14251,3182.2,3181.8,0.14585447]
[1736842212226,3.14251,3182.2,3181.6,3.0293387]
[1736842212552,3.14251,3182.2,3181.7,0.14648844]
[1736842212768,3.83282835,3182.2,3181.7,0.14648844]
[1736842213825,0.03921675,3182.1,3181.5,5.0]
[1736842214028,0.03921675,3182.1,3181.8,0.1464179]
[1736842214253,0.03921675,3182.1,3181.5,5.0]
[1736842214455,3.83282835,3182.2,3181.9,0.14634735]
[1736842214777,0.7555,3182.4,3181.4,3.66309755]
[1736842214778,4.68475693,3182.1,3182.0,0.14627682]
[1736842214978,3.14302,3181.7,3181.4,2.84609755]
[1736842215123,3.14317,3181.5,3181.4,2.84609755]
[1736842215824,0.8191,3181.6,3181.4,2.84609755]
[1736842216031,0.8191,3181.9,3181.4,2.84609755]
[1736842216231,0.03921675,3181.8,3181.4,2.84609755]
[1736842216647,1.20152735,3181.9,3181.4,2.84609755]
[1736842217365,0.03921675,3181.8,3181.4,2.84609755]
[1736842218842,4.34431735,3181.9,3181.4,2.84609755]
[1736842219043,0.03921675,3181.8,3181.4,2.84609755]
[1736842219245,0.8191,3181.9,3181.4,3.62129755]
[1736842219443,3.96168,3182.1,3181.4,5.62129755]
[1736842219651,0.03921675,3182.0,3181.4,5.62129755]
[1736842219850,3.18190675,3182.0,3181.4,5.62129755]
[1736842220461,3.04439024,3182.0,3181.4,5.62129755]
[1736842220670,0.8191,3181.6,3181.4,2.84609755]
[1736842220846,3.14327,3181.4,3181.0,2.0]
[1736842221029,3.5648141,3181.5,3180.6,7.28648511]
[1736842221030,3.14356,3181.2,3180.6,2.0]
[1736842221234,3.04439024,3181.3,3180.6,2.0]
[1736842221235,0.03921675,3181.1,3180.6,2.0]
[1736842221434,0.03921675,3181.2,3180.6,2.0]
[1736842221845,3.1434,3181.3,3180.6,2.0]
[1736842222249,0.03921675,3181.2,3180.6,2.0]
[1736842222748,0.03921675,3181.2,3180.7,0.13726528]
[1736842224270,3.1434,3181.3,3180.8,0.7752]
[1736842224441,0.03921675,3181.2,3180.8,0.7752]
[1736842224640,0.03921675,3181.2,3180.9,0.1371241]
[1736842225058,0.8191,3181.6,3181.0,2.0]
[1736842225576,0.8191,3181.6,3181.1,0.13698294]
[1736842226068,0.8191,3181.8,3181.1,0.13698294]
[1736842226269,3.00517349,3181.6,3181.1,0.13698294]
[1736842226471,3.14336,3181.4,3181.1,0.13698294]
[1736842226774,3.14336,3181.4,3180.8,0.7752]
[1736842226958,0.03921675,3181.5,3180.8,0.7752]
[1736842226959,0.03921675,3181.5,3181.2,0.13792847]
[1736842227160,4.34443735,3181.8,3181.1,2.0]
[1736842227473,0.03921675,3181.7,3181.3,0.1378579]
[1736842227640,3.1427,3182.0,3181.3,0.7752]
[1736842227979,3.1427,3182.0,3181.4,0.13801951]
[1736842228339,3.14277,3181.9,3181.4,0.13801951]
[1736842229137,0.03921675,3181.8,3181.4,0.13801951]
[1736842229976,3.14277,3181.9,3181.4,0.13801951]
[1736842230598,0.8191,3182.1,3181.6,2.0]
[1736842230796,3.18170675,3182.2,3181.6,2.0]
[1736842231094,3.18170675,3182.2,3181.7,0.13760147]
[1736842232761,3.14258,3182.1,3181.7,0.13760147]
[1736842232967,3.14287,3181.8,3181.7,0.13760147]
[1736842233187,3.14287,3181.8,3181.3,10.06168511]
[1736842233390,3.14287,3181.8,3181.7,0.16992113]
[1736842233591,3.14287,3181.8,3181.3,10.06168511]
[1736842233781,3.14287,3181.8,3181.7,0.16994177]
[1736842233986,3.14287,3181.8,3181.3,10.06168511]
[1736842234309,3.14287,3181.8,3181.7,0.16994177]
[1736842234607,3.14287,3181.8,3181.3,10.06168511]
[1736842234782,3.14287,3181.8,3181.7,0.16994177]
[1736842234984,3.14287,3181.8,3181.3,10.06168511]
[1736842235184,3.14287,3181.8,3181.7,0.16997272]
[1736842235382,3.14287,3181.8,3181.3,10.06168511]
[1736842235583,3.14287,3181.8,3181.7,0.16997272]
[1736842235782,3.14287,3181.8,3181.3,10.06168511]
[1736842235994,3.14287,3181.8,3181.7,0.16997272]
[1736842236194,3.14287,3181.8,3181.3,10.06168511]
[1736842236504,0.03921675,3182.1,3181.3,10.06168511]
[1736842236707,0.03921675,3182.1,3181.4,3.17018744]
[1736842237007,0.76,3182.5,3181.8,0.8255]
[1736842237333,0.76,3182.7,3181.9,0.1698296]
[1736842237473,3.18130675,3182.6,3182.1,2.0]
[1736842237804,3.18130675,3182.6,3182.2,0.16917645]
[1736842238013,3.14209,3182.6,3182.2,0.16917645]
[1736842239074,3.14209,3182.6,3182.3,0.315]
[1736842239287,3.14209,3182.6,3182.4,0.48403338]
[1736842239708,3.00517349,3182.8,3182.4,0.48403338]
[1736842239875,0.54996361,3183.9,3182.4,0.48403338]
[1736842239876,0.76,3183.2,3182.4,0.48403338]
[1736842240083,3.14173,3183.0,3182.4,0.48403338]
[1736842240435,0.005,3183.4,3182.6,1.1405]
[1736842240709,0.005,3183.4,3183.0,0.8255]
[1736842240932,0.005,3183.4,3183.1,0.315]
[1736842241093,0.005,3183.4,3183.3,5.315]
[1736842241430,0.005,3183.4,3183.3,3.148]
[1736842241578,0.005,3183.4,3183.3,10.34779847]
[1736842241772,0.005,3183.4,3183.3,10.3163929]
[1736842243411,0.005,3183.4,3183.3,7.1750029]
[1736842243644,0.005,3183.4,3183.3,10.3163929]
[1736842243804,0.005,3183.4,3183.3,10.0013929]
[1736842244289,0.005,3183.4,3183.3,6.8600029]
[1736842245006,0.005,3183.4,3183.3,10.0013929]
[1736842245985,0.005,3183.4,3183.3,9.7074858]
[1736842247587,0.005,3183.4,3183.3,6.5585958]
[1736842249618,0.005,3183.4,3183.3,6.0010958]
[1736842250019,0.005,3183.4,3183.3,6.03250396]
[1736842252544,0.005,3183.4,3183.3,3.02500396]
[1736842252834,0.005,3183.4,3183.3,5.9935958]
[1736842254237,0.005,3183.4,3183.3,5.1680958]
[1736842255335,0.005,3183.4,3183.3,5.20700665]
[1736842255583,0.005,3183.4,3183.3,9.65649665]
[1736842255693,0.005,3183.4,3183.3,9.9400858]
[1736842256520,0.005,3183.4,3183.3,9.9475858]
[1736842257327,0.005,3183.4,3183.3,10.23981915]
[1736842262400,0.005,3183.4,3183.3,10.23231915]
[1736842262618,0.005,3183.4,3183.3,10.37431915]
[1736842262899,0.005,3183.4,3183.3,2.78282915]
[1736842263123,0.005,3183.4,3183.3,2.77532915]
[1736842263528,0.005,3183.4,3183.3,5.46032915]
[1736842263720,0.005,3183.4,3183.3,2.46032915]
[1736842265049,0.005,3183.4,3183.3,2.1680958]
[1736842265355,1.50009302,3183.4,3183.3,2.1680958]
[1736842265655,4.64138302,3183.4,3183.3,0.1680958]
[1736842265948,4.64138302,3183.4,3182.5,2.0]
[1736842265949,0.7964,3183.3,3182.5,2.0]
[1736842266153,0.7964,3183.0,3182.5,2.0]
[1736842266457,0.83561675,3183.0,3182.5,2.0]
[1736842266622,0.39772168,3182.9,3182.5,2.0]
[1736842266826,0.83561675,3183.0,3182.5,2.0]
[1736842267018,3.14182,3182.9,3182.5,2.0]
[1736842267220,0.83561675,3183.0,3182.5,2.0]
[1736842267843,0.83561675,3183.0,3182.6,0.16663268]
[1736842268066,0.7964,3183.0,3182.6,0.46014258]
[1736842268369,3.93781,3183.3,3182.6,4.25794258]
[1736842268572,0.50336705,3183.2,3182.6,3.46014258]
[1736842268753,3.64485705,3183.2,3182.6,3.46014258]
[1736842269350,3.14166,3183.1,3182.6,3.46014258]
[1736842269620,3.46932379,3183.2,3182.7,0.2935099]
[1736842269819,3.46932379,3183.2,3182.7,0.46007105]
[1736842269820,0.4641503,3183.2,3182.7,0.46007105]
[1736842270119,3.93784,3183.3,3182.7,0.46007105]
[1736842270120,0.005,3183.4,3183.0,3.0]
[1736842270357,0.005,3183.4,3183.1,0.1976889]
[1736842270536,0.8288,3183.4,3183.1,0.16627511]
[1736842270764,0.8288,3183.4,3183.1,0.2935099]
[1736842270973,0.8288,3183.4,3183.2,0.16642518]
[1736842272298,0.8288,3183.4,3182.9,2.0]
[1736842272464,0.8288,3183.4,3183.3,0.16667816]
[1736842272670,0.8288,3183.4,3182.9,2.0]
[1736842273215,0.005,3183.4,3183.0,0.198307]
[1736842273417,0.005,3183.4,3183.0,0.16689267]
[1736842273592,0.005,3183.4,3183.0,0.46073657]
[1736842274120,0.005,3183.4,3183.1,0.7668]
[1736842274440,0.005,3183.4,3183.3,2.0]
[1736842274915,0.005,3183.4,3183.3,2.16671939]
[1736842275123,0.005,3183.4,3183.3,2.51313057]
[1736842275423,0.005,3183.4,3183.3,5.51312906]
[1736842275570,0.005,3183.4,3183.3,6.07812906]
[1736842275768,0.005,3183.4,3183.3,10.32986296]
[1736842275970,0.005,3183.4,3183.3,10.29845329]
[1736842276205,0.005,3183.4,3183.3,13.33529199]
[1736842279993,0.005,3183.4,3183.3,20.6217771]
[1736842280193,0.8169,3185.2,3184.8,2.0]
[1736842280575,0.8169,3185.2,3184.9,0.16492705]
[1736842282668,3.14,3184.8,3184.6,0.03139564]
[1736842282874,3.14,3184.8,3184.4,2.0]
[1736842283100,3.13974,3185.0,3184.4,2.0]
[1736842283599,6.14491349,3185.0,3184.4,2.0]
[1736842283800,0.03921675,3185.1,3184.4,2.0]
[1736842284106,0.43952064,3185.0,3184.5,3.8165]
[1736842284267,0.43952064,3185.0,3184.5,3.0]
[1736842284473,3.13975,3185.0,3184.5,3.0]
[1736842285105,0.03921675,3184.9,3184.5,3.0]
[1736842285407,0.8169,3185.5,3184.8,5.0075]
[1736842285704,3.95545,3186.2,3185.1,6.1396]
[1736842285871,0.8169,3186.2,3185.4,3.0]
[1736842286075,0.8169,3186.2,3185.5,0.03138793]
[1736842286291,0.1659124,3186.4,3185.6,0.0075]
[1736842286471,0.1659124,3186.4,3185.8,0.0075]
[1736842286802,0.1659124,3186.4,3185.8,0.03888402]
[1736842287510,0.1659124,3186.4,3185.8,3.03888402]
[1736842288480,0.1659124,3186.4,3185.8,0.03888402]
[1736842292115,0.1659124,3186.4,3185.8,0.03138402]
[1736842292295,3.34346915,3186.4,3185.7,2.0]
[1736842292481,0.41603691,3186.3,3185.7,2.0]
[1736842293117,0.7712,3186.0,3185.3,2.0]
[1736842293329,0.03921675,3185.9,3185.3,2.0]
[1736842294020,0.7712,3186.0,3185.3,2.0]
[1736842294222,0.390984,3185.9,3185.3,2.0]
[1736842295735,3.13883,3185.9,3185.3,2.0]
[1736842296303,0.81041675,3186.0,3185.3,2.0]
[1736842296726,3.94918675,3186.0,3185.3,2.0]
[1736842297036,0.03921675,3185.9,3185.3,2.0]
[1736842297191,0.7712,3186.0,3185.4,0.0075]
[1736842297898,0.7712,3186.0,3185.5,0.15137363]
[1736842298322,0.7712,3186.0,3185.4,0.0075]
[1736842298526,0.7712,3186.0,3185.6,0.15130223]
[1736842298732,0.7712,3186.0,3185.5,0.15137363]
[1736842298935,0.7712,3186.0,3185.7,0.15123085]
[1736842299143,0.7712,3186.0,3185.6,0.15133824]
[1736842299314,0.7712,3186.0,3185.8,0.15119033]
[1736842299653,0.7712,3186.0,3185.9,0.15111895]
[1736842299803,0.7712,3186.3,3185.9,0.15111895]
[1736842300008,0.7712,3186.3,3185.6,0.03138767]
[1736842300331,0.7712,3186.3,3186.0,0.15104757]
[1736842300527,0.7712,3186.3,3185.6,0.03138767]
[1736842300719,0.7712,3186.3,3186.1,0.1509762]
[1736842300917,1.17874624,3186.3,3185.6,0.03138767]
[1736842301122,0.7712,3186.3,3186.2,0.15090484]
[1736842301324,0.1659124,3186.4,3185.9,2.0]
[1736842301912,0.1659124,3186.4,3186.0,0.15104757]
[1736842302149,0.1659124,3186.4,3186.0,0.1824311]
[1736842302413,0.1659124,3186.4,3186.0,0.15104757]
[1736842303407,0.1659124,3186.4,3186.1,0.03138322]
[1736842303612,0.1659124,3186.4,3186.1,0.18235942]
[1736842304240,0.1659124,3186.4,3186.2,0.0075]
[1736842304457,0.1659124,3186.4,3186.3,8.95943]
[1736842304605,0.1659124,3186.4,3186.3,9.11002172]
[1736842304812,0.1659124,3186.4,3186.3,9.67502172]
[1736842305346,0.1659124,3186.4,3186.3,9.96662888]
[1736842305949,0.1659124,3186.4,3186.3,10.13062888]
[1736842307115,0.1659124,3186.4,3186.3,10.59731291]
[1736842307317,0.1659124,3186.4,3186.3,10.58231291]
[1736842307747,0.1659124,3186.4,3186.3,6.63038291]
[1736842308536,0.1659124,3186.4,3186.3,9.76881291]
[1736842308852,0.1659124,3186.4,3186.3,10.08381291]
[1736842309535,0.1659124,3186.4,3186.3,13.09914723]
[1736842310572,0.1659124,3186.4,3186.3,10.09881291]
[1736842312957,0.1659124,3186.4,3186.3,9.92731291]
[1736842313149,0.1659124,3186.4,3186.3,6.78138291]
[1736842313345,0.1659124,3186.4,3186.3,9.91981291]
[1736842314068,0.1659124,3186.4,3186.3,6.22388291]
[1736842315074,0.1659124,3186.4,3186.3,6.25526382]
[1736842315649,0.1659124,3186.4,3186.3,6.22388291]
[1736842316086,0.1659124,3186.4,3186.3,6.2552638]
[1736842317060,0.1659124,3186.4,3186.3,9.9511938]
[1736842317267,0.1659124,3186.4,3186.3,9.91981291]
[1736842317567,0.1659124,3186.4,3186.3,12.92764723]
[1736842317778,0.1659124,3186.4,3186.3,47.92764723]
[1736842318288,0.1659124,3186.4,3186.3,44.92731291]
[1736842318488,0.1659124,3186.4,3186.3,9.92731291]
[1736842319992,0.1659124,3186.4,3186.3,12.93514723]
[1736842320195,0.7982,3187.6,3187.2,3.45254]
[1736842320355,0.7982,3187.6,3187.3,0.03137101]
[1736842320554,0.314128,3188.3,3187.3,0.03137101]
[1736842320555,0.7982,3188.2,3187.4,0.315]
[1736842320754,0.7982,3188.2,3187.4,3.60115519]
[1736842321394,0.7982,3188.2,3187.4,0.46383519]
[1736842321592,0.393472,3188.1,3187.4,0.46383519]
[1736842321779,0.393472,3188.1,3187.6,0.315]
[1736842321979,0.393472,3188.1,3187.7,0.14817932]
[1736842323422,0.393472,3188.1,3187.8,0.14810802]
[1736842323582,0.393472,3188.1,3187.5,0.315]
[1736842323779,0.7982,3188.2,3187.9,0.14803673]
[1736842323983,0.7982,3188.2,3187.7,3.13705]
[1736842324719,0.7982,3188.2,3187.8,0.14810802]
[1736842324916,0.7982,3188.2,3187.8,3.28505802]
[1736842325122,0.7982,3188.2,3187.8,3.13695]
[1736842325288,0.7982,3188.2,3187.9,0.14803673]
[1736842326089,0.7982,3188.2,3188.0,0.29180581]
[1736842326485,0.7982,3188.2,3188.1,0.14789417]
[1736842327194,0.005,3188.4,3188.1,0.14789417]
[1736842331105,0.7982,3188.3,3188.1,0.14789417]
[1736842331329,0.005,3188.4,3188.1,0.14789417]
[1736842333000,0.005,3188.4,3188.2,0.14700596]
[1736842333201,0.4028616,3188.4,3187.7,3.0]
[1736842333423,0.4028616,3188.4,3188.3,0.14693469]
[1736842333825,0.4028616,3188.4,3187.9,3.14435]
[1736842334021,0.005,3188.4,3188.3,0.14693469]
[1736842334227,0.005,3188.4,3187.9,3.91674]
[1736842334427,0.005,3188.4,3188.3,0.14693469]
[1736842334820,0.005,3188.4,3187.9,0.7799]
[1736842335007,0.005,3188.4,3188.3,0.14693469]
[1736842335207,0.86000533,3188.4,3188.0,0.29181403]
[1736842336028,0.86000533,3188.4,3188.1,0.14707723]
[1736842337017,0.86000533,3188.4,3188.2,0.14700596]
[1736842337345,0.86000533,3188.4,3187.9,0.29181403]
[1736842337837,0.86000533,3188.4,3187.8,0.29181403]
[1736842338052,0.86000533,3188.4,3187.9,0.1472198]
[1736842338505,0.8208,3188.4,3187.9,0.1472198]
[1736842339012,0.0392078,3188.3,3187.9,0.1472198]
[1736842339219,0.8208,3188.4,3187.9,0.1472198]
[1736842339418,0.03920783,3188.3,3187.9,0.1472198]
[1736842339831,0.03920783,3188.3,3187.9,0.43903383]
[1736842340043,3.95239,3188.2,3187.9,0.43903383]
[1736842340242,0.03921109,3188.1,3187.9,0.43903383]
[1736842340911,0.8158,3188.2,3187.9,0.43903383]
[1736842341346,0.8158,3188.2,3187.9,0.1472198]
[1736842341641,0.03921108,3188.1,3187.6,2.0]
[1736842341942,0.03921108,3188.1,3187.7,0.14707986]
[1736842342964,0.43836019,3188.1,3187.7,0.14707986]
[1736842343124,3.57503019,3188.1,3187.7,0.14707986]
[1736842344959,3.57503019,3188.1,3187.3,3.0]
[1736842345124,3.57503019,3188.1,3187.8,0.14726534]
[1736842345323,3.57503019,3188.1,3187.4,0.29228056]
[1736842345532,3.57503019,3188.1,3187.9,0.14719405]
[1736842345736,0.43836124,3188.1,3187.9,0.14719405]
[1736842346055,0.03921213,3188.1,3188.0,0.14712276]
[1736842346256,0.03921213,3188.1,3187.4,0.29228056]
[1736842346463,3.13677,3188.0,3187.5,0.14747923]
[1736842346658,0.03921221,3187.9,3187.5,0.43975979]
[1736842346861,3.95276,3187.8,3187.5,0.43975979]
[1736842347062,0.8158,3187.8,3187.5,0.43975979]
[1736842347761,0.03921594,3187.7,3187.5,0.43975979]
[1736842348069,3.95295,3187.6,3187.5,0.43975979]
[1736842348378,3.95295,3187.6,3187.5,0.14747923]
[1736842348379,0.8158,3187.6,3187.5,0.14747923]
[1736842348729,0.8158,3187.6,3187.2,0.29228056]
[1736842348927,0.8158,3187.6,3187.5,0.14747923]
[1736842349128,3.13745,3187.3,3187.2,0.29228056]
[1736842349372,3.95309,3187.5,3187.3,0.29228056]
[1736842349573,0.8158,3187.5,3187.3,0.29228056]
[1736842350143,0.8158,3187.5,3187.4,0.14775089]
[1736842350992,0.8158,3187.5,3186.9,3.0]
[1736842351449,0.8158,3187.5,3187.0,0.14803616]
[1736842351845,0.784,3188.0,3187.1,3.9245]
[1736842352089,3.92083,3188.0,3187.2,3.14789352]
[1736842352636,0.784,3188.0,3187.2,3.14789352]
[1736842352837,0.784,3188.0,3187.3,0.03137328]
[1736842353090,0.0392166,3187.9,3187.4,0.14804373]
[1736842353263,0.5744166,3188.0,3187.4,0.14804373]
[1736842353450,0.5744166,3188.0,3187.4,0.44080372]
[1736842354090,3.00033432,3188.4,3187.8,0.815]
[1736842354384,0.30003343,3188.3,3187.9,0.14768724]
[1736842355584,3.13673,3188.1,3187.9,0.14768724]
[1736842355887,3.13673,3188.1,3187.8,0.815]
[1736842356088,3.13673,3188.1,3187.9,0.14768724]
[1736842356366,3.13673,3188.1,3187.8,0.565]
[1736842356367,3.13676,3188.1,3187.8,0.565]
[1736842356571,3.48043934,3188.1,3187.8,0.565]
[1736842356744,3.13676,3188.0,3187.8,0.565]
[1736842356951,3.92076,3188.0,3187.9,0.14768724]
[1736842357171,0.784,3188.0,3187.9,0.39768724]
[1736842357331,0.784,3188.0,3187.9,0.25]
[1736842357538,0.784,3188.0,3187.9,0.39768724]
[1736842358739,0.784,3188.0,3187.9,0.14768724]
[1736842359140,0.784,3188.0,3187.8,0.565]
[1736842359335,0.784,3188.0,3187.9,0.25]
[1736842359839,3.6425249,3188.4,3187.9,0.565]
[1736842359840,0.784,3188.4,3187.9,0.565]
[1736842360136,3.92038,3188.4,3188.1,0.315]
[1736842360539,3.13647,3188.3,3188.2,0.1474734]
[1736842361002,3.13647,3188.3,3188.1,0.315]
[1736842361296,3.13647,3188.3,3188.0,0.315]
[1736842361476,3.13647,3188.3,3188.1,0.46254468]
[1736842361687,3.13647,3188.3,3188.1,0.315]
[1736842361882,6.7613202,3188.7,3188.1,0.315]
[1736842361883,0.784,3188.7,3188.3,0.5]
[1736842362196,0.784,3189.5,3188.7,1.6019]
[1736842362492,10.0,3190.0,3189.5,1.3519]
[1736842362654,10.0,3190.0,3189.5,10.88374817]
[1736842362852,0.09821868,3189.6,3189.5,4.74813385]
[1736842363177,0.09821868,3189.6,3189.5,12.89124817]
[1736842363563,0.09821868,3189.6,3189.5,13.18381728]
[1736842363796,0.09821868,3189.6,3189.5,12.86881728]
[1736842364293,0.09821868,3189.6,3189.5,13.43381728]
[1736842364808,0.09821868,3189.6,3189.5,7.29820296]
[1736842365005,0.09821868,3189.6,3189.5,4.73320296]
[1736842365299,0.09821868,3189.6,3189.5,7.86848296]
[1736842365604,0.09821868,3189.6,3189.5,8.43348296]
[1736842367695,8.68e-06,3189.6,3189.5,8.43348296]
[1736842369623,8.68e-06,3189.6,3189.5,10.43348296]
[1736842370991,8.68e-06,3189.6,3189.5,7.00563385]
[1736842371414,8.68e-06,3189.6,3189.5,3.64623385]
[1736842371591,8.68e-06,3189.6,3189.5,0.64623385]
[1736842372923,8.68e-06,3189.6,3189.5,3.64623385]
[1736842373130,8.68e-06,3189.6,3189.5,0.64623385]
[1736842375113,13.13103517,3190.0,3189.5,0.64623385]
[1736842375431,14.52253869,3190.0,3189.5,0.64623385]
[1736842375819,14.52253869,3190.0,3189.7,0.25]
[1736842376135,14.52253869,3190.0,3189.8,0.13044051]
[1736842376437,14.52253869,3190.0,3189.7,0.25]
[1736842376631,9.99623517,3190.0,3189.8,0.25]
[1736842376820,9.99623517,3190.0,3189.8,0.3803895]
[1736842377136,3.13489,3189.9,3189.8,0.25]
[1736842378303,9.99623517,3190.0,3189.8,0.25]
[1736842379239,13.13107517,3190.0,3189.8,0.25]
[1736842379436,3.13489,3189.9,3189.8,0.25]
[1736842381107,9.99623517,3190.0,3189.8,0.25]
[1736842381638,9.99623517,3190.0,3189.9,0.13036421]
[1736842382029,9.99623517,3190.0,3189.8,0.25]
[1736842382340,9.99623517,3190.0,3189.9,0.13037441]
[1736842382649,9.99623517,3190.0,3189.8,0.25]
[1736842382803,9.99623517,3190.0,3189.7,0.25]
[1736842382804,11.38772869,3190.0,3189.7,0.5]
[1736842383009,14.52251869,3190.0,3189.9,0.13037441]
[1736842383211,3.96279,3189.9,3189.8,0.1305629]
[1736842383543,3.13499,3189.8,3189.7,0.25]
[1736842384046,3.13499,3189.8,3189.7,0.315]
[1736842384244,4.67005187,3189.8,3189.7,0.315]
[1736842384420,3.9628,3189.9,3189.7,0.565]
[1736842385014,3.9628,3189.9,3189.7,0.25]
[1736842385214,0.8279,3189.9,3189.7,0.25]
[1736842385443,3.13499,3189.8,3189.6,0.315]
[1736842385750,3.13499,3189.8,3189.7,0.25]
[1736842387179,9.99623517,3190.0,3189.8,0.315]
[1736842387331,9.99623517,3190.0,3189.7,0.5]
[1736842387332,9.99623517,3190.0,3189.9,0.565]
[1736842387975,9.99623517,3190.0,3189.9,0.69552231]
[1736842389723,9.99623517,3190.0,3189.9,0.13052231]
[1736842390681,9.99623517,3190.0,3189.9,0.69552231]
[1736842393996,9.99623517,3190.0,3189.9,0.38052231]
[1736842394194,10.99585869,3190.0,3189.9,0.67287608]
[1736842394839,9.99623517,3190.0,3189.9,0.67287608]
[1736842395882,9.99623517,3190.0,3189.9,0.38052231]
[1736842396080,9.99623517,3190.0,3189.9,0.69552231]
[1736842396246,9.99623517,3190.0,3189.9,1.45202231]
[1736842397493,9.99623517,3190.0,3189.9,0.69552231]
[1736842398361,9.99623517,3190.0,3189.9,0.38052231]
[1736842398966,9.99623517,3190.0,3189.9,0.69552231]
[1736842400984,9.99623517,3190.0,3189.9,1.45202231]
[1736842401998,9.99623517,3190.0,3189.9,6.59441231]
[1736842402900,9.99623517,3190.0,3189.9,6.60191231]
[1736842404203,9.99623517,3190.0,3189.9,6.58691231]
[1736842405013,9.99623517,3190.0,3189.9,3.45202231]
[1736842405230,9.99623517,3190.0,3189.9,3.69552231]
[1736842405522,9.99623517,3190.0,3189.9,3.38052231]
[1736842405866,10.79763517,3190.0,3189.9,3.38052231]
[1736842406673,10.79763517,3190.0,3189.9,3.25]
[1736842406878,3.13494,3189.9,3189.6,0.5]
[1736842407479,15.19120501,3190.0,3189.4,0.25]
[1736842407801,3.13517,3189.7,3189.4,0.25]
[1736842408098,10.79763517,3190.0,3189.7,0.25]
[1736842408267,13.93250517,3190.0,3189.7,0.25]
[1736842408467,14.98665934,3190.0,3189.7,0.25]
[1736842408701,3.13489,3189.9,3189.7,0.25]
[1736842408899,3.13499,3189.8,3189.7,0.25]
[1736842409100,11.85178934,3190.0,3189.2,0.5]
[1736842409314,3.13526,3189.6,3189.2,0.5]
[1736842409776,3.13526,3189.6,3189.4,0.25]
[1736842410169,3.13501,3189.8,3189.4,0.25]
[1736842410487,3.1351,3189.7,3189.4,0.25]
[1736842411909,0.8014,3189.9,3189.2,0.25]
[1736842412084,3.90059,3189.4,3189.2,0.25]
[1736842412883,3.13548,3189.3,3189.2,0.25]
[1736842413072,0.7652,3189.7,3189.2,0.25]
[1736842413275,3.13529,3189.5,3189.2,0.25]
[1736842413500,3.13541,3189.4,3189.2,0.25]
[1736842413674,3.13541,3189.4,3189.1,0.565]
[1736842413876,3.13541,3189.4,3189.3,0.25]
[1736842414111,3.448951,3189.4,3189.3,0.25]
[1736842415213,3.90089,3189.1,3188.9,0.5]
[1736842415408,0.7652,3189.1,3188.9,0.5]
[1736842415609,1.82206759,3189.8,3189.1,0.25]
[1736842415610,3.90059,3189.4,3189.1,0.25]
[1736842416001,3.90059,3189.4,3189.2,0.1265257]
[1736842416175,3.13528,3189.5,3189.2,0.3765257]
[1736842416921,3.90033,3189.7,3189.2,0.3765257]
[1736842417211,0.7652,3189.9,3189.4,0.25]
[1736842417376,9.99623517,3190.0,3189.8,0.25]
[1736842417777,9.99623517,3190.0,3189.9,0.12666829]
[1736842417994,9.99623517,3190.0,3189.8,0.25]
[1736842418403,9.99623517,3190.0,3189.9,0.12666829]
[1736842418602,13.13102517,3190.0,3189.9,0.12666829]
[1736842418781,13.13102517,3190.0,3189.8,0.25]
[1736842418978,13.13102517,3190.0,3189.9,0.12653597]
[1736842419222,13.13102517,3190.0,3189.8,0.25]
[1736842420015,3.13489,3189.9,3189.6,0.5]
[1736842420315,3.13502,3189.8,3189.7,0.12667838]
[1736842420616,13.13108517,3190.0,3189.7,0.12667838]
[1736842421084,13.13108517,3190.0,3189.6,0.5]
[1736842421411,14.52071369,3190.0,3189.7,0.12667838]
[1736842421816,14.52071369,3190.0,3189.6,0.5]
[1736842421817,11.38586369,3190.0,3189.6,0.5]
[1736842422112,3.13498,3189.9,3189.7,0.12667838]